Cogmind - Beta 16.1 @@@ ROGUE MODE // 2026.04.22 @ 17:21:04 Player: impermanentSelf Result: Destroyed by H-61 Shepherd with Heavy Assault Cannon Performance ------------- Evolutions (3) 1500 Regions Visited (7) 1400 Robots Destroyed (83) 415 Value Destroyed (2720) 2720 Prototype IDs (5) 100 Alien Tech Used (0) 0 Bonus (246) 246 TOTAL SCORE: 6381 Bonus ------- High Alert Combat Kills 46 Entered Garrisons 200 Cogmind --------- Core Integrity 0/700 Matter 167/300 Energy 33/100 System Corruption 16% Temperature Cool (11) Movement Treading (160) Location -7/Factory Parts ------- > --- POWER (1) -------- (None) > --- PROPULSION (3) --- Light Treads Light Treads > --- UTILITY (5) ------ Large Storage Unit Authchip [R/Combat] > --- WEAPON (4) ------- (None) > --- INVENTORY (15) --- Large Storage Unit Weight Redist. System Advanced Visual Processing Unit Improved Sensor Array Improved Targeting Computer Hardlight Generator Authchip [R/Combat] Improved Field Recycling Unit (0) Peak State ------------ > --- POWER ------------ Improved Deuterium Engine > --- PROPULSION ------- Light Treads Improved Treads Armored Treads > --- UTILITY ---------- Coolant Injector Large Storage Unit Improved Light Armor Plating Improved Shield Generator Authchip [R/Combat] > --- WEAPON ----------- EM Pulse Cannon Heavy Particle Cannon Flak Cannon Flak Cannon > --- INVENTORY -------- Light Deuterium Engine Light Treads Light Treads Large Storage Unit Weight Redist. System Advanced Visual Processing Unit Improved Sensor Array Improved Targeting Computer Hardlight Generator Hacking Suite Authchip [R/Combat] Improved Field Recycling Unit EM Pulse Cannon Flak Cannon Shock Bomb Launcher [Rating: 41] Favorites ----------- Power Light Nuclear Core Engine Improved Deuterium Engine Power Core Light Nuclear Core Propulsion Improved Treads Treads Improved Treads Wheel Wheel Utility Large Storage Unit Device Improved Heat Sink Storage Large Storage Unit Processor Targeting Computer Hackware Authchip [R/Combat] Protection Light Armor Plating Weapon Flak Cannon Energy Gun Small Laser Energy Cannon Advanced Beam Cannon Ballistic Gun Heavy Assault Rifle Ballistic Cannon Flak Cannon Launcher Shock Bomb Launcher Build | -11 -10 -10 -9 -8 -8 -8 -7 ------- Run | Yrd Mat Min Mat Mat Gar Mat Fac Slots Evolved 6 | . . . 2 2 . . 2 Power . | . . . . . . . . Propulsion 1 | . . . . 1 . . . Utility 3 | . . . 1 1 . . 1 Weapon 2 | . . . 1 . . . 1 Parts Attached 69 | 7 7 5 22 9 3 5 11 Power 16 | 1 3 2 4 2 2 1 1 Engine 11 | 1 2 1 2 2 1 1 1 Core 5 | . 1 1 2 . 1 . . Reactor . | . . . . . . . . Propulsion 13 | 2 . 2 4 1 1 1 2 Treads 11 | . . 2 4 1 1 1 2 Leg . | . . . . . . . . Wheel 2 | 2 . . . . . . . Hover . | . . . . . . . . Flight . | . . . . . . . . Utility 19 | 1 3 . 5 5 . . 5 Device 7 | . . . 1 4 . . 2 Storage 3 | 1 2 . . . . . . Processor 2 | . 1 . 1 . . . . Hackware 2 | . . . . . . . 2 Protection 5 | . . . 3 1 . . 1 Artifact . | . . . . . . . . Weapon 21 | 3 1 1 9 1 . 3 3 Energy Gun 5 | 3 1 . 1 . . . . Energy Cannon 7 | . . . 4 1 . 2 . Ballistic Gun 2 | . . 1 1 . . . . Ballistic Cannon 5 | . . . 2 . . 1 2 Launcher 2 | . . . 1 . . . 1 Special Weapon . | . . . . . . . . Impact Weapon . | . . . . . . . . Slashing Weapon . | . . . . . . . . Piercing Weapon . | . . . . . . . . Special Melee Weapon . | . . . . . . . . Unidentified Prototypes 1 | . . . 1 . . . . Parts Lost 26 | . 2 5 1 . 2 . 16 Power 4 | . . 1 . . 1 . 2 Propulsion 6 | . . 2 . . 1 . 3 Utility 4 | . . . . . . . 4 Weapon 12 | . 2 2 1 . . . 7 Highest Loss Streak 16 | . 2 4 1 . 2 . 16 To Critical Strikes . | . . . . . . . . Average Backups 12 | 3 7 6 12 12 13 14 14 Power . | . 1 . . 1 1 1 . Propulsion 2 | 2 3 2 2 . 1 2 1 Utility 5 | . 1 3 6 6 6 8 8 Weapon 2 | . . . 2 4 4 3 2 Tool/Special . | . . . . . . . . Unused Backups 17 | . 1 . 8 1 . . 7 Power 2 | . . . 2 . . . . Propulsion 4 | . . . 4 . . . . Utility 11 | . 1 . 2 1 . . 7 Weapon . | . . . . . . . . Tool/Special . | . . . . . . . . Average Slot Usage (%) 95 | . 95 92 95 98 100 99 92 Engine 3 | . 7 4 1 6 4 . 6 Core 6 | . 6 8 9 2 4 8 . Treads 20 | . . 23 21 26 27 27 20 Wheel 2 | . 25 3 . . . . . Device 9 | . . . 6 17 18 17 13 Storage 10 | . 14 14 11 9 9 9 7 Processor 4 | . 13 14 5 . . . . Hackware 1 | . . . . . . . 11 Protection 7 | . . . 10 8 9 9 3 Energy Gun 3 | . 26 14 . . . . . Energy Cannon 10 | . . . 10 12 18 17 13 Ballistic Gun 2 | . . 9 3 5 . . . Ballistic Cannon 7 | . . . 7 9 9 9 13 Launcher 2 | . . . 6 . . . . Peak Build Rating 41 | 6 10 10 22 28 29 30 41 Average Rating 21 | 5 7 8 18 27 27 27 37 On Entrance 16 | . 6 10 9 22 28 28 30 Avg Prop Armor Cover (%) . | . . . . . . . . Naked Turns . | . . . . . . . . Heaviest Build 62 | 14 28 28 48 51 51 51 62 Greatest Support 66 | 20 20 40 52 66 66 63 63 Greatest Overweight (x) 12 | 2 4 8 12 . . 1 8 Average Overweight (x) . | . . . . . . . . Largest Inventory Capacity 15 | 8 15 15 15 15 15 15 15 Average Capacity 14 | 7 9 15 15 15 15 15 15 Most Carried 15 | 6 9 8 15 15 15 15 15 Average Carried 12 | 3 7 6 12 12 13 14 14 Final Capacity 15 | 8 15 15 15 15 15 15 15 Final Carried 15 | 6 8 8 12 14 15 15 8 Class Distribution -------------------- 27% | Mutant 15% | Gunner 15% | Bomber 13% | Scientist-Tank 13% | Scavenger-Tank 9% | Tank 4% | Scavenger-Bomber Dominant Class ---------------- Mutant | -10/Materials Mutant | -10/Mines Gunner | -9/Materials Scavenger-Bomber | -8/Materials Scavenger-Tank | -8/Garrison Scavenger-Tank | -8/Materials Scientist-Tank | -7/Factory Resources | -11 -10 -10 -9 -8 -8 -8 -7 ----------- Run | Yrd Mat Min Mat Mat Gar Mat Fac Matter Collected 1673 | 223 167 56 632 267 124 70 134 Remotely . | . . . . . . . . Salvage Created 2764 | . 322 111 1409 351 201 94 276 Parts 154 | . 21 7 88 13 17 2 6 Haulers Intercepted . | . . . . . . . . Recyclers Shooed . | . . . . . . . . Parts Field Recycled . | . . . . . . . . Retrieved Matter . | . . . . . . . . Parts Self-Destructed . | . . . . . . . . Prevented . | . . . . . . . . Parts Restored . | . . . . . . . . Kills | -11 -10 -10 -9 -8 -8 -8 -7 ------- Run | Yrd Mat Min Mat Mat Gar Mat Fac Combat Hostiles Destroyed 78 | . 9 3 39 10 7 2 8 Guns 19 | . 8 3 4 4 . . . Cannons 52 | . . . 34 6 7 2 3 AOE 7 | . 1 . 1 . . . 5 Classes Destroyed 9 | . 3 . 3 1 1 . 1 Worker 1 | . . . 1 . . . . Watcher 4 | . 1 . 3 . . . . Swarmer 23 | . 3 1 6 3 3 . 7 Grunt 40 | . 6 2 25 4 2 1 . Brawler 1 | . . . . 1 . . . Duelist 3 | . . . 2 . . 1 . Sentry 9 | . . . 6 2 1 . . Hunter 1 | . . . . . 1 . . Programmer 1 | . . . . . . . 1 Best Kill Streak 6 | . 6 1 5 4 3 1 4 Combat Bots Only 6 | . 6 1 5 4 3 1 4 Max Kills in Single Turn 4 | . 2 1 2 1 1 1 4 Gunslinging 1 | . 1 . . . . . . Exploded 4 | . 1 . 1 . . . 4 Melee . | . . . . . . . . Uniques/NPCs Destroyed . | . . . . . . . . Combat | -11 -10 -10 -9 -8 -8 -8 -7 -------- Run | Yrd Mat Min Mat Mat Gar Mat Fac Hostile Shots Fired 674 | . 40 99 153 36 57 3 286 Missed 204 | . 10 31 42 12 22 . 87 Hits 470 | . 30 68 111 24 35 3 199 Melee 7 | . . . 4 2 . 1 . Projectile 463 | . 30 68 107 22 35 2 199 AOE 1 | . . . . . . . 1 Critical Strikes 15 | . . 1 2 1 1 . 10 Part Disruptions 2 | . . . . . . . 2 Damage Taken 6092 | . 297 646 1360 349 318 84 3038 Core 1245 | . 60 114 232 53 21 35 730 Absorbed by Shields 405 | . . . . . 121 34 250 Regen/Repaired (Parts) 362 | . 58 . 125 . . . 179 Core Remaining (%) 63 | 100 . 30 42 . . 80 . Volleys Fired 192 | . 27 22 84 20 14 5 20 Largest 4 | . 2 2 3 3 3 3 4 Hottest 212 | . 80 80 138 180 180 175 212 Shots Fired 400 | . 43 32 166 60 37 14 48 Gun 113 | . 43 32 19 19 . . . Cannon 284 | . . . 145 41 37 14 47 Launcher 3 | . . . 2 . . . 1 Special . | . . . . . . . . Kinetic 176 | . . 6 87 39 14 5 25 Thermal 154 | . 8 22 63 21 23 5 12 Explosive . | . . . . . . . . Electromagnetic 70 | . 35 4 16 . . 4 11 Robot Hit Streak 29 | . 9 12 29 7 5 9 11 Robot Miss Streak 8 | . 5 4 7 5 5 3 8 Penetration Max . | . . . . . . . . Secondary Targets 1 | . 1 . . . . . . Max Gunslinging Chain 1 | . 1 . . . . . . Shots Hit Robots 259 | . 24 19 112 41 21 9 33 Core Hits 162 | . 16 5 68 22 17 7 27 Critical Kills 1 | . . . . 1 . . . Critical Parts Destroyed 2 | . . 1 . 1 . . . Critical Strikes 4 | . 1 1 . 2 . . . Destroy 3 | . . 1 . 2 . . . Corrupt 1 | . 1 . . . . . . Melee Attacks . | . . . . . . . . Impact . | . . . . . . . . Slashing . | . . . . . . . . Piercing . | . . . . . . . . Sneak Attacks . | . . . . . . . . Combat Hostiles . | . . . . . . . . Follow-up Attacks . | . . . . . . . . Damage Inflicted 5375 | . 457 211 2347 756 465 257 882 Guns 919 | . 333 211 155 220 . . . Cannons 3894 | . . . 2107 536 465 257 529 Explosions 560 | . 124 . 85 . . . 351 Melee . | . . . . . . . . Ramming 2 | . . . . . . . 2 Kinetic 2309 | . . 22 1199 424 185 106 373 Thermal 2105 | . 166 152 797 332 280 75 303 Explosive . | . . . . . . . . Electromagnetic 959 | . 291 37 351 . . 76 204 Impact . | . . . . . . . . Slashing . | . . . . . . . . Piercing . | . . . . . . . . Highest Corruption 16 | . . . . . . 1 16 Average Corruption 3 | . . . . . . 1 9 Corruption Purged . | . . . . . . . . Corruption Blocked . | . . . . . . . . Effects 5 | . . . . . . 1 4 Message Errors 2 | . . . . . . 1 1 Energy Discharges 2 | . . . . . . . 2 Data Loss (major) 1 | . . . . . . . 1 Overload Shots . | . . . . . . . . Overflow Damage 40 | . 13 . . 27 . . . Projectiles 27 | . . . . 27 . . . Explosions 13 | . 13 . . . . . . Melee . | . . . . . . . . Knockbacks 41 | . . . 18 4 6 5 8 Impact . | . . . . . . . . Kinetic 38 | . . . 16 4 6 5 7 Secondary 3 | . . . 2 . . . 1 Self-Inflicted Damage 76 | . 37 . 39 . . . . Shots 3 | . 2 . 1 . . . . Rammed 2 | . . . . . . . 2 Targets Rammed 2 | . . . . . . . 2 Kicked . | . . . . . . . . Crushed . | . . . . . . . . Highest Temperature 437 | . 177 170 437 361 308 144 199 Average Temperature 98 | . 91 52 101 111 134 83 87 Received Heat Transfer 1049 | . 48 177 438 117 101 12 156 Effects 2 | . . . 2 . . . . Shutdowns 1 | . . . 1 . . . . Energy Bleed 1 | . . . 1 . . . . Siege Activations . | . . . . . . . . Martial Activations . | . . . . . . . . Shielding Activations . | . . . . . . . . Robots Disrupted 1 | . 1 . . . . . . Combat Hostiles 1 | . 1 . . . . . . Robots Corrupted . | . . . . . . . . Combat Hostiles . | . . . . . . . . Parts Fried 3 | . 2 . 1 . . . . Impact Corruptions . | . . . . . . . . Robots Melted . | . . . . . . . . Combat Hostiles . | . . . . . . . . Parts Melted 1 | . . . . 1 . . . Heat Transferred 3461 | . 200 350 1471 592 444 111 293 Parts Sabotaged . | . . . . . . . . Parts Stolen . | . . . . . . . . Parts Stripped . | . . . . . . . . Power Chain Reactions 5 | . 2 . 2 . . . 1 Alert | -11 -10 -10 -9 -8 -8 -8 -7 ------- Run | Yrd Mat Min Mat Mat Gar Mat Fac Maximum Alert Level 2 | . . . 2 1 1 . . Low Security (%) 65 | 100 100 100 58 23 6 100 100 Level 1 32 | . . . 36 76 93 . . Level 2 2 | . . . 5 . . . . Level 3 . | . . . . . . . . Level 4 . | . . . . . . . . Level 5 . | . . . . . . . . High Security . | . . . . . . . . Max Security . | . . . . . . . . Peak Influence 483 | . 141 55 483 316 273 132 196 Initial 200 | . . 4 3 200 133 132 6 Average 136 | . 78 22 159 236 242 58 44 Influence Increases 2411 | . 291 125 1188 316 160 52 279 Destroy 0b10 Robot/C 1560 | . 180 60 780 200 140 40 160 Destroy 0b10 Robot/NC 25 | . 5 . 20 . . . . Destroy Leader 338 | . 42 20 176 50 20 10 20 Successful Hack 68 | . 23 . 34 5 . . 6 Disable Machine 120 | . . . 30 . . . 90 Destroy Structure 30 | . 11 . 13 1 . 2 3 Partial Spotted 15 | . . . . 15 . . . Lose Combat Pursuer 255 | . 30 45 135 45 . . . Influence Decreases 2411 | . 278 128 723 585 93 311 293 Entered New Map 513 | . . 9 7 275 73 141 8 Time Decay 1492 | . 258 70 556 310 . 170 128 Lost Part 256 | . 20 49 10 . 20 . 157 Purge Threat 150 | . . . 150 . . . . Squads Dispatched 15 | . 1 . 6 6 . . 2 Investigation 2 | . . . 2 . . . . Extermination 1 | . . . . . . . 1 Reinforcement 8 | . 1 . 3 3 . . 1 Assault 1 | . . . 1 . . . . Garrison 3 | . . . . 3 . . . Intercept . | . . . . . . . . Searches Triggered . | . . . . . . . . Construction Impeded . | . . . . . . . . Haulers Reinforced . | . . . . . . . . Active Scanning Responses . | . . . . . . . . Cargo Convoy Interrupts 1 | . . . . . . . 1 Stealth | -11 -10 -10 -9 -8 -8 -8 -7 --------- Run | Yrd Mat Min Mat Mat Gar Mat Fac Distress Signals 5 | . 1 . 3 1 . . . Communications Jammed . | . . . . . . . . Distress Signals . | . . . . . . . . Times Spotted 145 | . 15 9 64 13 10 2 32 Peak Tracking Total 12 | . 4 5 8 5 4 2 12 Tactical Retreats 12 | . 1 3 5 3 . . . Traps | -11 -10 -10 -9 -8 -8 -8 -7 ------- Run | Yrd Mat Min Mat Mat Gar Mat Fac Traps Triggered 4 | . 2 . 1 . . 1 . Indirectly . | . . . . . . . . Trap Hack Attempts . | . . . . . . . . Triggered . | . . . . . . . . Disarmed . | . . . . . . . . Reprogrammed . | . . . . . . . . Reused . | . . . . . . . . Traps Extracted . | . . . . . . . . Installed . | . . . . . . . . Triggered . | . . . . . . . . Machines | -11 -10 -10 -9 -8 -8 -8 -7 ---------- Run | Yrd Mat Min Mat Mat Gar Mat Fac Machines Disabled 8 | . . . 2 . . . 6 Max in Single Turn 3 | . . . 2 . . . 3 Machines Repaired . | . . . . . . . . Machines Dismantled . | . . . . . . . . Machines Sabotaged . | . . . . . . . . Overloaded Fab Kills . | . . . . . . . . Hacking | -11 -10 -10 -9 -8 -8 -8 -7 --------- Run | Yrd Mat Min Mat Mat Gar Mat Fac Machines Accessed 25 | . 5 . 10 4 1 . 5 Terminals 15 | . 3 . 6 3 1 . 2 Fabricators . | . . . . . . . . Repair Stations 4 | . 1 . 2 . . . 1 Recycling Units 3 | . 1 . 1 . . . 1 Scanalyzers 2 | . . . 1 . . . 1 Garrison Access 1 | . . . . 1 . . . Total Hacks 87 | . 20 . 35 9 2 . 21 Successful 55 | . 15 . 18 5 1 . 16 Failed 32 | . 5 . 17 4 1 . 5 Catastrophic 3 | . . . 3 . . . . Database Lockouts . | . . . . . . . . Manual . | . . . . . . . . Terminals 42 | . 9 . 17 7 2 . 7 Fabricators . | . . . . . . . . Repair Stations 26 | . 9 . 10 . . . 7 Recycling Units 9 | . 2 . 5 . . . 2 Scanalyzers 8 | . . . 3 . . . 5 Garrison Access 2 | . . . . 2 . . . Terminal Hacks 26 | . 7 . 10 4 1 . 4 Prototype ID Bank 2 | . 1 . 1 . . . . Open DSF 1 | . . . . . . . 1 Branch Access Points 1 | . . . . . . . 1 Emergency Access Points 2 | . 1 . . 1 . . . Recycling Unit Index 1 | . . . 1 . . . . Alert Level 5 | . 1 . 2 1 . . 1 Unreport Threat 1 | . . . 1 . . . . Dispatch Records 2 | . 1 . 1 . . . . Maintenance Status 3 | . 1 . 2 . . . . Security Status 3 | . 1 . 1 1 . . . Investigation Status 1 | . . . . 1 . . . Extermination Status 1 | . . . . . . . 1 Zone Layout 2 | . 1 . 1 . . . . Garrison Registry 1 | . . . . . 1 . . Fabricator Hacks . | . . . . . . . . Repair Station Hacks 18 | . 7 . 5 . . . 6 Scan Component 10 | . 4 . 3 . . . 3 Repair 8 | . 3 . 2 . . . 3 Recycling Unit Hacks 3 | . 1 . . . . . 2 Process 1 | . . . . . . . 1 Report Inventory 2 | . 1 . . . . . 1 Scanalyzer 7 | . . . 3 . . . 4 Insert Component 1 | . . . 1 . . . . Analyze 1 | . . . 1 . . . . Retrieve Study 5 | . . . 1 . . . 4 Garrison Access Hacks 1 | . . . . 1 . . . Unlock Access 1 | . . . . 1 . . . Unauthorized Hacks . | . . . . . . . . Terminals . | . . . . . . . . Fabricators . | . . . . . . . . Repair Stations . | . . . . . . . . Recycling Units . | . . . . . . . . Scanalyzers . | . . . . . . . . Garrison Access . | . . . . . . . . Data Cores Recovered . | . . . . . . . . Used . | . . . . . . . . Hacking Detections 24 | . 5 . 10 4 1 . 4 Full Trace Events 1 | . . . 1 . . . . Feedback Events . | . . . . . . . . Feedback Blocked . | . . . . . . . . Robot Schematics Acquired . | . . . . . . . . Robots Built . | . . . . . . . . Authchips . | . . . . . . . . Time . | . . . . . . . . Total Robot Build Rating . | . . . . . . . . Part Schematics Acquired 1 | . . . 1 . . . . Parts Built . | . . . . . . . . Authchips . | . . . . . . . . Time . | . . . . . . . . Total Part Build Rating . | . . . . . . . . Part Studies Acquired 5 | . . . 1 . . . 4 Parts Repaired 8 | . 3 . 2 . . . 3 Time 268 | . 90 . 76 . . . 102 Parts Recycled . | . . . . . . . . Recycled Matter 39 | . . . . . . . 39 Retrieved Matter . | . . . . . . . . Retrieved Components . | . . . . . . . . Parts Scanalyzed 1 | . . . 1 . . . . Part Schematics Acquired 1 | . . . 1 . . . . Parts Damaged 1 | . . . 1 . . . . Bothacking | -11 -10 -10 -9 -8 -8 -8 -7 ------------ Run | Yrd Mat Min Mat Mat Gar Mat Fac Used RIF Installer . | . . . . . . . . Robots Hacked . | . . . . . . . . Non-combat . | . . . . . . . . Combat . | . . . . . . . . Robot Hacks Applied . | . . . . . . . . Relay Couplers Released . | . . . . . . . . Fabnet Peak Effective % . | . . . . . . . . Robots Rewired . | . . . . . . . . Allies Hacked . | . . . . . . . . Hacks Repelled . | . . . . . . . . Allies | -11 -10 -10 -9 -8 -8 -8 -7 -------- Run | Yrd Mat Min Mat Mat Gar Mat Fac Total Allies . | . . . . . . . . Largest Group . | . . . . . . . . Highest-Rated Group . | . . . . . . . . Highest-Rated Ally . | . . . . . . . . Total Orders . | . . . . . . . . Ally Attacks . | . . . . . . . . Total Damage . | . . . . . . . . Kills . | . . . . . . . . Allies Corrupted . | . . . . . . . . Allies Melted . | . . . . . . . . Intel | -11 -10 -10 -9 -8 -8 -8 -7 ------- Run | Yrd Mat Min Mat Mat Gar Mat Fac Active Infowar (turns) . | . . . . . . . . Robot Analysis Total . | . . . . . . . . Derelict Logs Recovered . | . . . . . . . . Drone Launches . | . . . . . . . . Drone Recoveries . | . . . . . . . . Exploration | -11 -10 -10 -9 -8 -8 -8 -7 ------------- Run | Yrd Mat Min Mat Mat Gar Mat Fac Turns Passed 5832 | 56 606 174 2596 684 450 358 908 Spaces Moved 2897 | 50 427 69 1200 352 239 198 362 Core 16 | 4 1 1 3 . . . 7 Treads 2407 | . . 66 1197 352 239 198 355 Legs . | . . . . . . . . Wheels 474 | 46 426 2 . . . . . Hover . | . . . . . . . . Flight . | . . . . . . . . Fastest Speed 50 | 50 80 95 160 160 160 160 160 Average Speed 149 | 79 84 162 161 160 160 160 169 Slowest Speed 650 | 150 250 450 650 160 160 220 450 Overloaded Moves . | . . . . . . . . Propulsion Burnouts . | . . . . . . . . Robots Hopped . | . . . . . . . . Potential Cave-ins . | . . . . . . . . Cave-ins Triggered . | . . . . . . . . Exploration Rate (%) 32 | 3 52 17 73 43 36 23 10 Regions Visited 7 Branch Regions 1 Pre-discovered Areas . | . . . . . . . . Known Exits Taken 1 | . . . . 1 . . . Unknown Exits Taken 5 | 1 1 1 1 . . 1 . Scrap Searched 1 | . . 1 . . . . . Spaces Dug . | . . . . . . . . Terrain Destroyed 24 | . 10 . 7 . . 2 5 Melee . | . . . . . . . . Projectile 5 | . . . 3 . . 2 . AOE 19 | . 10 . 4 . . . 5 Terrain Rammed . | . . . . . . . . Walls Destroyed . | . . . . . . . . Machines Disabled . | . . . . . . . . Actions | -11 -10 -10 -9 -8 -8 -8 -7 --------- Run | Yrd Mat Min Mat Mat Gar Mat Fac Total 4063 | 63 630 100 1707 439 277 228 619 Wait 754 | . 138 . 339 42 14 11 210 Move 2890 | 49 426 68 1199 351 238 197 362 Hop . | . . . . . . . . Pick Up 50 | 6 8 3 20 5 4 2 2 Fast Attach 55 | 6 12 2 16 6 1 5 7 Attach 26 | 1 2 3 9 1 2 . 8 Detach 29 | 1 6 1 15 5 1 . . Swap 9 | . 1 . 1 2 1 1 3 Drop 54 | . 8 1 24 7 2 7 5 Fire 192 | . 27 22 84 20 14 5 20 Melee . | . . . . . . . . Ram . | . . . . . . . . Kick . | . . . . . . . . Crush 2 | . . . . . . . 2 Escape Stasis . | . . . . . . . . Rewire 2 | . 2 . . . . . . Trap . | . . . . . . . . Miscellaneous . | . . . . . . . . Route ------- -11/Scrapyard -10/Materials (discovered 2 exits: [*Min x2]) -10/Mines -9/Materials (discovered 4 exits: *Mat x3 / [*Min]) -8/Materials -8/Garrison (discovered 3 exits: [*Mat x3]) -8/Materials -7/Factory (discovered 2 exits: Low x2) History --------- Turn | Location | Event 18 | -11/Scrapyard | Discovered new exit (range 16) 57 | -11/Scrapyard | Entered Materials 282 | -10/Materials | Discovered new exit (range 14) 330 | -10/Materials | Build established: Mutant 337 | -10/Materials | Discovered new exit (range 6) 443 | -10/Materials | Repaired Wheel 476 | -10/Materials | Repaired Wheel 515 | -10/Materials | Repaired Imp. Heat Sink 663 | -10/Materials | Entered Mines 663 | -10/Mines | Discovered new exit (range 10) 666 | -10/Mines | Met a Derelict bent on vengeance 700 | -10/Mines | Core integrity fell below 50% 712 | -10/Mines | Lost 4 parts (1p2n1w) 837 | -10/Mines | Entered Materials 837 | -9/Materials | Evolved 2 slots: Utility x1, Weapon x1 1197 | -9/Materials | Discovered new exit (range 14) 1432 | -9/Materials | Build established: Gunner 1745 | -9/Materials | Discovered new exit (range 5) 2458 | -9/Materials | Build established: Bomber 2510 | -9/Materials | Discovered new exit (range 5) 2840 | -9/Materials | Discovered new exit (range 14) 2889 | -9/Materials | Repaired Imp. Treads+ 2935 | -9/Materials | Repaired Broken Imp. Treads+ 3114 | -9/Materials | Core integrity fell below 50% 3237 | -9/Materials | First assault squad dispatched 3433 | -9/Materials | Entered another Materials area 3433 | -8/Materials | Evolved 2 slots: Propulsion x1, Utility x1 3713 | -8/Materials | Garrison activated, responded to threat 3909 | -8/Materials | Met 7R-MNS 4114 | -8/Materials | Identified exit to Garrison 4117 | -8/Materials | Entered Garrison 4132 | -8/Garrison | Discovered new exit (range 37) 4132 | -8/Garrison | Discovered new exit (range 58) 4132 | -8/Garrison | Discovered new exit (range 75) 4188 | -8/Garrison | Build established: Tank 4245 | -8/Garrison | Triggered checkpoint 4567 | -8/Garrison | Entered Materials 4577 | -8/Materials | Build established: Scavenger-Tank 4820 | -8/Materials | Discovered new exit (range 14) 4925 | -8/Materials | Entered Factory 4925 | -7/Factory | Evolved 2 slots: Utility x1, Weapon x1 5020 | -7/Factory | Repaired Imp. Shield Generator 5048 | -7/Factory | Repaired Lgt. Armor Plating 5081 | -7/Factory | Repaired Imp. Treads+ 5239 | -7/Factory | Build established: Scientist-Tank 5640 | -7/Factory | Identified exit to Lower Caves 5725 | -7/Factory | Cargo convoy interrupted 5778 | -7/Factory | System corruption reached 10% 5783 | -7/Factory | Core integrity fell below 50% 5805 | -7/Factory | Core integrity fell below 20% 5833 | -7/Factory | Destroyed by H-61 Shepherd with Heavy Assault Cannon Last Messages --------------- Critical hit (Blast). Knocked back. Acquired 7 matter. Slug penetrates Wall. U-05 Engineer builds a Wall. Penetrated by Slug. EM Pulse Cannon destroyed. FBVFCAQF A&61H/FZ,PHW5Z2J Slammed into G-50 Soldier. Hacking Suite destroyed. Slug penetrates Wall. Penetrated by Slug. EM Pulse Cannon destroyed. M-28 Smith fits Backup Power III on P-60 Hacker. Slammed into P-60 Hacker. Imp. Light Armor Plating destroyed. M-28 Smith repairs P-60 Hacker Shock Rifle. Penetrated by Slug. Slug penetrates M-28 Smith. [Achievement: 5k Club] Map ----- +----------------------------------------------------+ | # #???????????????????????????????????? | | # #???????????????????????????????????? | | ####????????????????????????????????? | | ^ ???????????????????????????????? | | ???????????????????????????????? | | ???????????????????????????????? | | %"" """ ????????????????????????????????? | | " """ """ ????????????????????????????????? | | """ """ ?????????????????????????????????? | | " """ """ +??????????????????????????????? | | #??????????????????????????????? | | """ """ """ #???????????????????????????????????? | | %%"%"%%%""" ####+#??????????????????????????????? | | %%% %%% """ # #??????????????????????????????? | | %%%" """ # !#????????#?????????????????????? | | %* !% # #?????T" #?????????????????????? | | %%%|%%% * %! # #?????"" #?????? ! ???????????? | | %%%%%%%=%! # #???? #????? ???????????? | | "%%%%%% != + "" #???"" +???? ![[ "???????????? | | """!""% # "T #???"" ???? ![ "???????????? | | ==*=# "" #???"" ???? [[ T???????????? | | """ """ !====" #??? ???? ""??????????? | | """ """ == *!##########+##### "" ?????????? | | "" """ =%=k| a ????????? | | "" """ = !%* [ =????????? | | =!! g h @% k ????????? | | kw Hm p ! """????????????? | | hpg g """????????????? | | ##/############ ###p####### """????????????? | | ??????????????# ## u% #?? k ????????????? | | ??????????????# ## % #???? ??????????? | | ??????????????# ## #?????? ??????????? | | ????????????? ## #??????????????????? | | ????????????### ^ ## #??????????????????? | | ??????????????#^ ^ ## #??????????????????? | | ??????????????######## #??????????????????? | | ?????????????????????# #??????????????????? | | ?????????????????????# #??????????????????? | | ?????????????????????#####"#"##??????????????????? | | ??????????????????????????####???????????????????? | | ?????????????????????????????????????????????????? | | ?????????????????????????????????????????????????? | | ?????????????????????????????????????????????????? | | ?????????????????????????????????????????????????? | | ?????????????????????????????????????????????????? | | ?????????????????????????????????????????????????? | | ?????????????????????????????????????????????????? | | ?????????????????????????????????????????????????? | | ?????????????????????????????????????????????????? | | ?????????????????????????????????????????????????? | +----------------------------------------------------+ Best States ------------- Heat Dissipation 48 Coolant Potential 65 Energy Generation 18 Energy Capacity 290 Matter Stores 300 Matter Capacity 400 Sight Range 16 Terrain Scan Density 10 Additional Mass Support 6 Armor Coverage 225 Weapon Cycling 15 Evasion (%) 44 Targeting Accuracy 6 Recoil Reduction 3 Offensive Hacking 10 Authchip Count 2 Item Schematics ----------------- Imp. Treads | -9/Materials | Scanalyzed Robot Schematics ------------------ None Fabricated ------------ Nothing Repaired ---------- Wheel | 55% | -10/Materials Wheel | 25% | -10/Materials Imp. Heat Sink | 75% | -10/Materials Imp. Treads | 19% | -9/Materials Imp. Treads | 99% | -9/Materials | Broken Imp. Shield Generator | 7% | -7/Factory Lgt. Armor Plating | 45% | -7/Factory Imp. Treads | 40% | -7/Factory Studied --------- Imp. Treads | -9/Materials | Hacked Flak Cannon | -7/Factory | Hacked Imp. Deuterium Engine | -7/Factory | Hacked Arm. Treads | -7/Factory | Hacked Lgt. Treads | -7/Factory | Hacked Alien Tech Used ----------------- None Achievements -------------- 5k Club Heavy Suspicion Jackpot Made in Tau Ceti IV Significant Disruption Challenges ------------ None Game ------ Seed ScrapoidZioniteSuite Manual? 0 Play Time 01:23:18 Cumulative 6.3 hours Start 2026.04.22 @ 15:57:53 End 2026.04.22 @ 17:21:04 Sessions 1 Manual Loads 0 Difficulty Rogue Special Mode None Game No. 8 Rogue 8 Adventurer 0 Explorer 0 Win Type - Total 0 Types 0/0/0/0/0/0/0/0/0/0 Lore% 0 Gallery% 8 Achievement% 8 Wizard Run 0 Options --------- Layout 1 ASCII 0 Keyboard 1 Movement Numpad Keybinds 0 Fullscreen 1 Font 32/SmallcapsGlow Map View 50x40 Zoom Use 0% Tactical HUD 0 Map Filters NONE Filters NONE Steam 1 RUN: de2dd665-3520-4506-a31c-6fd3712c6ee2